Cogmind - Beta 14 @@@ ROGUE MODE // 2024.08.10 @ 21:51:36 Player: Clortox Result: Destroyed by G-47 Trooper with Particle Gun Performance ------------- Evolutions (1) 500 Regions Visited (3) 600 Robots Destroyed (23) 115 Value Destroyed (372) 372 Prototype IDs (1) 20 Alien Tech Used (0) 0 Bonus (0) 0 TOTAL SCORE: 1607 Bonus ------- None Cogmind --------- Core Integrity 0/400 Matter 252/300 Energy 262/280 System Corruption 0% Temperature Cool (6) Movement Walking (120) Location -9/Materials Parts ------- > --- POWER (1) -------- Heavy Ion Engine > --- PROPULSION (3) --- Aluminum Leg Improved Aluminum Leg > --- UTILITY (3) ------ Sensor Array Shield Generator > --- WEAPON (2) ------- Small Laser Light Assault Rifle > --- INVENTORY (5) ---- (None) Peak State ------------ > --- POWER ------------ Heavy Ion Engine > --- PROPULSION ------- Aluminum Leg Improved Aluminum Leg > --- UTILITY ---------- Sensor Array Shield Generator > --- WEAPON ----------- Small Laser Light Assault Rifle > --- INVENTORY -------- (None) [Rating: 11] Favorites ----------- Power Ion Engine Engine Ion Engine Propulsion Aluminum Leg Leg Aluminum Leg Utility Small Storage Unit Device Seismic Detector Storage Small Storage Unit Weapon Assault Rifle Energy Gun Particle Gun Ballistic Gun Assault Rifle Special Weapon Mining Laser Build | -11 -10 -10 -9 ------- Run | Yrd Mat Min Mat Slots Evolved 2 | . . . 2 Power . | . . . . Propulsion 1 | . . . 1 Utility 1 | . . . 1 Weapon . | . . . . Parts Attached 25 | 8 1 7 9 Power 5 | 1 . 1 3 Engine 5 | 1 . 1 3 Core . | . . . . Reactor . | . . . . Propulsion 6 | 2 1 1 2 Treads . | . . . . Leg 6 | 2 1 1 2 Wheel . | . . . . Hover . | . . . . Flight . | . . . . Utility 6 | 3 . 2 1 Device 5 | 2 . 2 1 Storage 1 | 1 . . . Processor . | . . . . Hackware . | . . . . Protection . | . . . . Artifact . | . . . . Weapon 8 | 2 . 3 3 Energy Gun 2 | . . 1 1 Energy Cannon . | . . . . Ballistic Gun 5 | 2 . 1 2 Ballistic Cannon . | . . . . Launcher . | . . . . Special Weapon 1 | . . 1 . Impact Weapon . | . . . . Slashing Weapon . | . . . . Piercing Weapon . | . . . . Special Melee Weapon . | . . . . Unidentified Prototypes 1 | . . . 1 Parts Lost 15 | . . 9 6 Power 4 | . . 1 3 Propulsion 3 | . . 3 . Utility 3 | . . 2 1 Weapon 5 | . . 3 2 Highest Loss Streak 5 | . . 5 4 To Critical Strikes . | . . . . Average Slot Usage (%) 80 | . 100 75 51 Engine 11 | . 14 12 7 Leg 19 | . 28 16 7 Device 14 | . 14 14 15 Storage 8 | . 14 7 . Energy Gun 4 | . . 11 8 Ballistic Gun 20 | . 28 11 12 Peak Build Rating 11 | 7 7 8 11 Average Rating 6 | 5 7 6 5 On Entrance 5 | . 7 7 6 Naked Turns . | . . . . Heaviest Build 15 | 15 15 15 13 Greatest Support 23 | 20 20 20 23 Greatest Overweight (x) 3 | 1 . 3 3 Average Overweight (x) . | . . . 1 Largest Inventory Capacity 8 | 8 8 8 5 Average Capacity 6 | 7 8 6 5 Most Carried 8 | 5 8 8 4 Average Carried 4 | 2 6 5 2 Final Capacity 8 | 8 8 5 5 Final Carried 8 | 5 8 3 . Class Distribution -------------------- 77% | Mutant 22% | Scavenger-Mutant Dominant Class ---------------- Mutant | -10/Materials Mutant | -10/Mines Scavenger-Mutant | -9/Materials Resources | -11 -10 -10 -9 ----------- Run | Yrd Mat Min Mat Matter Collected 620 | 324 142 76 78 Remotely 143 | 143 . . . Salvage Created 608 | 145 242 99 122 Parts 53 | 12 19 12 10 Haulers Intercepted . | . . . . Recyclers Shooed . | . . . . Parts Field Recycled . | . . . . Retrieved Matter . | . . . . Parts Self-Destructed . | . . . . Prevented . | . . . . Kills | -11 -10 -10 -9 ------- Run | Yrd Mat Min Mat Combat Hostiles Destroyed 16 | . 6 7 3 Guns 16 | . 6 7 3 Classes Destroyed 8 | 2 4 1 1 Worker 2 | . 2 . . Tunneler 4 | 4 . . . Recycler 1 | 1 . . . Watcher 1 | . 1 . . Swarmer 9 | . 3 6 . Grunt 5 | . 3 . 2 Duelist 1 | . . . 1 Assembled 1 | . . 1 . Best Kill Streak 4 | 4 3 3 3 Combat Bots Only 3 | . 3 3 3 Max Kills in Single Turn 1 | 1 1 1 1 Gunslinging . | . . . . Exploded . | . . . . Melee . | . . . . Uniques/NPCs Destroyed . | . . . . Combat | -11 -10 -10 -9 -------- Run | Yrd Mat Min Mat Hostile Shots Fired 144 | . 40 37 67 Missed 45 | . 14 12 19 Damage Taken 2000 | . 328 846 826 Core 648 | . 55 193 400 Absorbed by Shields 4 | . . . 4 Core Remaining (%) 50 | 100 . . . Volleys Fired 79 | 9 28 22 20 Largest 2 | 2 2 2 2 Hottest 100 | 40 40 100 88 Shots Fired 139 | 18 56 28 37 Gun 135 | 18 56 24 37 Cannon . | . . . . Launcher . | . . . . Special 4 | . . 4 . Kinetic 108 | 18 56 8 26 Thermal 31 | . . 20 11 Explosive . | . . . . Electromagnetic . | . . . . Robot Hit Streak 16 | 6 6 6 16 Robot Miss Streak 5 | 1 5 3 3 Penetration Max . | . . . . Secondary Targets 3 | . 2 . 1 Max Gunslinging Chain 1 | . 1 . 1 Shots Hit Robots 82 | 13 30 10 29 Core Hits 39 | 6 14 8 11 Critical Kills . | . . . . Critical Parts Destroyed . | . . . . Critical Strikes . | . . . . Melee Attacks . | . . . . Impact . | . . . . Slashing . | . . . . Piercing . | . . . . Sneak Attacks . | . . . . Combat Hostiles . | . . . . Follow-up Attacks . | . . . . Damage Inflicted 1083 | 159 422 147 355 Guns 1060 | 159 415 131 355 Cannons . | . . . . Explosions . | . . . . Melee . | . . . . Ramming 23 | . 7 16 . Kinetic 835 | 159 415 25 236 Thermal 225 | . . 106 119 Explosive . | . . . . Electromagnetic . | . . . . Impact . | . . . . Slashing . | . . . . Piercing . | . . . . Highest Corruption 15 | . . 15 . Average Corruption 14 | . . 14 . Corruption Purged . | . . . . Corruption Blocked . | . . . . Effects 10 | . . 10 . Message Errors 1 | . . 1 . Matter Fused 3 | . . 3 . Heat Flow Errors 3 | . . 3 . Misdirections 1 | . . 1 . Weapon Failures 2 | . . 2 . Overload Shots . | . . . . Overflow Damage . | . . . . Projectiles . | . . . . Explosions . | . . . . Melee . | . . . . Knockbacks . | . . . . Impact . | . . . . Kinetic . | . . . . Secondary . | . . . . Self-Inflicted Damage . | . . . . Shots . | . . . . Rammed . | . . . . Targets Rammed 7 | . 1 6 . Kicked 7 | . 1 6 . Crushed . | . . . . Highest Temperature 294 | . 8 294 151 Average Temperature 59 | . 3 66 56 Received Heat Transfer 342 | . 132 . 210 Siege Activations . | . . . . Robots Corrupted . | . . . . Combat Hostiles . | . . . . Parts Fried . | . . . . Impact Corruptions . | . . . . Robots Melted . | . . . . Combat Hostiles . | . . . . Parts Melted . | . . . . Heat Transferred 543 | . . 259 284 Parts Sabotaged . | . . . . Parts Stolen . | . . . . Parts Stripped . | . . . . Power Chain Reactions . | . . . . Alert | -11 -10 -10 -9 ------- Run | Yrd Mat Min Mat Peak Influence 165 | 25 116 141 165 Initial 50 | . 16 33 50 Average 72 | 10 67 96 86 Maximum Alert Level . | . . . . Low Security (%) 100 | 100 100 100 100 Level 1 . | . . . . Level 2 . | . . . . Level 3 . | . . . . Level 4 . | . . . . Level 5 . | . . . . High Security . | . . . . Max Security . | . . . . Squads Dispatched 3 | . . . 3 Investigation 1 | . . . 1 Extermination . | . . . . Reinforcement 2 | . . . 2 Assault . | . . . . Garrison . | . . . . Intercept . | . . . . Searches Triggered . | . . . . Construction Impeded . | . . . . Haulers Reinforced . | . . . . Active Scanning Responses . | . . . . Cargo Convoy Interrupts . | . . . . Stealth | -11 -10 -10 -9 --------- Run | Yrd Mat Min Mat Distress Signals 5 | . 2 2 1 Communications Jammed . | . . . . Distress Signals . | . . . . Times Spotted 37 | . 10 10 17 Peak Tracking Total 6 | . 5 5 6 Tactical Retreats 5 | . 1 2 2 Traps | -11 -10 -10 -9 ------- Run | Yrd Mat Min Mat Traps Triggered 2 | . 1 . 1 Indirectly . | . . . . Trap Hack Attempts . | . . . . Triggered . | . . . . Disarmed . | . . . . Reprogrammed . | . . . . Reused . | . . . . Traps Extracted . | . . . . Installed . | . . . . Triggered . | . . . . Machines | -11 -10 -10 -9 ---------- Run | Yrd Mat Min Mat Machines Disabled . | . . . . Max in Single Turn . | . . . . Machines Repaired . | . . . . Machines Dismantled . | . . . . Machines Sabotaged . | . . . . Overloaded Fab Kills . | . . . . Hacking | -11 -10 -10 -9 --------- Run | Yrd Mat Min Mat Machines Accessed . | . . . . Terminals . | . . . . Fabricators . | . . . . Repair Stations . | . . . . Recycling Units . | . . . . Scanalyzers . | . . . . Garrison Access . | . . . . Total Hacks . | . . . . Successful . | . . . . Failed . | . . . . Catastrophic . | . . . . Database Lockouts . | . . . . Manual . | . . . . Terminals . | . . . . Fabricators . | . . . . Repair Stations . | . . . . Recycling Units . | . . . . Scanalyzers . | . . . . Garrison Access . | . . . . Terminal Hacks . | . . . . Fabricator Hacks . | . . . . Repair Station Hacks . | . . . . Recycling Unit Hacks . | . . . . Scanalyzer . | . . . . Garrison Access Hacks . | . . . . Unauthorized Hacks . | . . . . Terminals . | . . . . Fabricators . | . . . . Repair Stations . | . . . . Recycling Units . | . . . . Scanalyzers . | . . . . Garrison Access . | . . . . Data Cores Recovered . | . . . . Used . | . . . . Hacking Detections . | . . . . Full Trace Events . | . . . . Feedback Events . | . . . . Feedback Blocked . | . . . . Robot Schematics Acquired . | . . . . Robots Built . | . . . . Authchips . | . . . . Time . | . . . . Total Robot Build Rating . | . . . . Part Schematics Acquired . | . . . . Parts Built . | . . . . Authchips . | . . . . Time . | . . . . Total Part Build Rating . | . . . . Parts Repaired . | . . . . Time . | . . . . Parts Recycled . | . . . . Recycled Matter . | . . . . Retrieved Matter . | . . . . Retrieved Components . | . . . . Parts Scanalyzed . | . . . . Part Schematics Acquired . | . . . . Parts Damaged . | . . . . Bothacking | -11 -10 -10 -9 ------------ Run | Yrd Mat Min Mat Used RIF Installer . | . . . . Robots Hacked . | . . . . Non-combat . | . . . . Combat . | . . . . Robot Hacks Applied . | . . . . Relay Couplers Released . | . . . . Fabnet Peak Effective % . | . . . . Robots Rewired . | . . . . Allies Hacked . | . . . . Hacks Repelled . | . . . . Allies | -11 -10 -10 -9 -------- Run | Yrd Mat Min Mat Total Allies . | . . . . Largest Group . | . . . . Highest-Rated Group . | . . . . Highest-Rated Ally . | . . . . Total Orders . | . . . . Ally Attacks . | . . . . Total Damage . | . . . . Kills . | . . . . Allies Corrupted . | . . . . Allies Melted . | . . . . Intel | -11 -10 -10 -9 ------- Run | Yrd Mat Min Mat Robot Analysis Total . | . . . . Derelict Logs Recovered . | . . . . Drone Launches . | . . . . Drone Recoveries . | . . . . Exploration | -11 -10 -10 -9 ------------- Run | Yrd Mat Min Mat Turns Passed 1363 | 128 614 264 357 Spaces Moved 725 | 71 317 143 194 Core 115 | 9 . 16 90 Treads . | . . . . Legs 610 | 62 317 127 104 Wheels . | . . . . Hover . | . . . . Flight . | . . . . Fastest Speed 50 | 50 120 120 100 Average Speed 129 | 113 120 131 148 Slowest Speed 200 | 120 120 200 200 Overloaded Moves . | . . . . Propulsion Burnouts . | . . . . Robots Hopped . | . . . . Cave-ins Triggered 2 | . . 2 . Exploration Rate (%) 21 | 4 41 20 19 Regions Visited 3 Branch Regions 1 Pre-discovered Areas . | . . . . Known Exits Taken . | . . . . Unknown Exits Taken 3 | 1 1 1 . Scrap Searched . | . . . . Spaces Dug 4 | . . 4 . Terrain Destroyed 4 | . . 4 . Melee . | . . . . Projectile 4 | . . 4 . AOE . | . . . . Terrain Rammed . | . . . . Walls Destroyed . | . . . . Machines Disabled . | . . . . Actions | -11 -10 -10 -9 --------- Run | Yrd Mat Min Mat Total 1010 | 99 497 182 232 Wait 141 | . 138 . 3 Move 722 | 70 316 142 194 Hop . | . . . . Pick Up 30 | 12 8 4 6 Fast Attach . | . . . . Attach 23 | 7 . 7 9 Detach . | . . . . Swap 2 | 1 1 . . Drop 5 | . 5 . . Fire 79 | 9 28 22 20 Melee . | . . . . Ram 1 | . . 1 . Kick 7 | . 1 6 . Crush . | . . . . Escape Stasis . | . . . . Rewire . | . . . . Trap . | . . . . Miscellaneous . | . . . . Route ------- -11/Scrapyard -10/Materials -10/Mines -9/Materials History --------- Turn | Location | Event 7 | -11/Scrapyard | Discovered new exit (range 16) 129 | -11/Scrapyard | Entered Materials 313 | -10/Materials | Build established: Mutant 702 | -10/Materials | Discovered new exit (range 8) 743 | -10/Materials | Entered Mines 759 | -10/Mines | Assembled infested the area 819 | -10/Mines | Lost 3 parts (1n2w) 848 | -10/Mines | Crushed by falling debris 848 | -10/Mines | System corruption reached 10% 869 | -10/Mines | Core integrity fell below 50% 872 | -10/Mines | Crushed by falling debris 903 | -10/Mines | Lost 5 parts (1p1n2u1w) 969 | -10/Mines | Core integrity fell below 20% 995 | -10/Mines | Discovered new exit (range 7) 1007 | -10/Mines | Entered Materials 1007 | -9/Materials | Evolved 2 slots: Propulsion x1, Utility x1 1172 | -9/Materials | Core integrity fell below 50% 1183 | -9/Materials | Core integrity fell below 20% 1212 | -9/Materials | Lost 4 parts (2p1u1w) 1364 | -9/Materials | Destroyed by G-47 Trooper with Particle Gun Last Messages --------------- R-06 Scavenger collects Heat Sink. R-06 Scavenger collects Sml. Laser. Acquired 15 matter. Autogun destroyed. ALERT: Hostiles spotted, dispatching reinforcements to Terminal M009. O-16 Technician: "IFF HANDSHAKE FAILED. SECURING TERMINAL." ALERT: Hostiles spotted, dispatching reinforcements to Terminal M001. W-16 Scout sends out distress signal. Ion Engine destroyed. K-01 Serf collects debris. Acquired Prototype Engine. Identified Hvy. Ion Engine. Triggered Alarm Trap. An alarm sounds. ALERT: Alarm triggered, dispatching investigation squad. Acquired Shield Generator. Map ----- +----------------------------------------------------+ | ????????????????????= ?? | | ????????????????????? """ ""??? | | ????????????????????? """ ""??? | | ??????????????????????""" "???? | | ??????????????????????? ????? | | ???????????########+####+###### | | ???????? | | ???????? | | ???????????????######## ####### | | ???????? ????????????# #?????? | | ???????? ????????????# #?????? | | ???????? ????????????# #?????? | | ???????? #???????????# #?????? | | ???????? #???????????# #?????? | | ???????? #???????????# #?????? | | ???????? +???????????# #?????? | | ???????# #???????????# #?????? | | ???????# #??#+########/##????? | | ???????# #??# # #????? | | ???????# #??# # """ #????? | | ???????#??#### # """"" #????# | | ???????# # """"" #????# | | ???????#g ? """"" #?** | | ????####g###+### """ #?** | | ????# #?# #?!! | | ????# @"""Yt #?# #??! | | ????# """ #?###########??* | | ????# """ #????????????????? | | ????# #????????????????? | | ????# """ #????????????????? | | ????# """ #????????????????? | | ????# """ #????????????????? | | ????# #????????????????? | | ????##########????????????????? | | ??????????????????????????????? | | ??????????????????????????????? | | ??????????????????????????????? | | ??????????????????????????????? | | ??????????????????????????????? | | ??????????????????????????????? | | ??????????????????????????????? | | ??????????????????????????????? | | ??????????????????????????????? | | ??????????????????????????????? | | ??????????????????????????????? | | ??????????????????????????????? | | ??????????????????????????????? | | ??????????????????????????????? | | ??????????????????????????????? | | ??????????????????????????????? | +----------------------------------------------------+ Best States ------------- Heat Dissipation 38 Energy Generation 14 Energy Capacity 280 Matter Stores 300 Matter Capacity 300 Sight Range 16 Robot Scan Range 14 Terrain Scan Density 10 Evasion (%) 55 Item Schematics ----------------- None Robot Schematics ------------------ None Fabricated ------------ Nothing Alien Tech Used ----------------- None Achievements -------------- Close Call I Survived The Infestation Use The Force Challenges ------------ None Game ------ Seed CoilNullObliterator Manual? 0 Play Time 00:16:23 Cumulative 2.7 hours Start 2024.08.10 @ 21:34:36 End 2024.08.10 @ 21:51:36 Sessions 1 Manual Loads 0 Difficulty Rogue Special Mode None Game No. 6 Rogue 6 Adventurer 0 Explorer 0 Win Type - Total 0 Types 0/0/0/0/0/0/0/0/0 Lore% 2 Gallery% 4 Achievement% 5 Wizard Run 0 Options --------- Layout 1 ASCII 0 Keyboard 0 Movement Mouse Keybinds 0 Fullscreen 1 Font 24/Smallcaps Map View 50x35 Zoom Use 0% Tactical HUD 0 Map Filters NONE Filters NONE Steam 1 RUN: 410ca382-afd3-4c19-af51-80987e82b75c